bitfinex-derivatives/quotes_ETHF0:USTF0_20250923
["timestamp","ask_amount","ask_price","bid_price","bid_amount"]
[1758661777315,0.6555,4168.5,4168.4,1.17183]
[1758661777516,0.9713,4168.5,4168.4,1.17183]
[1758661777916,3.5236,4168.6,4168.5,0.56462]
[1758661778119,3.7676,4168.6,4168.5,1.30482]
[1758661778318,0.3158,4168.9,4168.5,6.95225]
[1758661778526,0.8512,4169.0,4168.9,1.17178]
[1758661778728,1.0952,4169.0,4168.9,1.17178]
[1758661785931,1.0952,4169.0,4168.9,0.85668]
[1758661786132,1.0952,4169.0,4168.9,1.17178]
[1758661790334,0.7273,4168.4,4168.3,0.5217]
[1758661790635,0.7273,4168.4,4168.3,0.7402]
[1758661791423,0.7273,4168.4,4168.3,1.17184]
[1758661814051,0.5249,4168.4,4168.3,1.17184]
[1758661814552,0.7297,4168.4,4168.3,1.17184]
[1758661847563,1.16133,4168.4,4168.0,1.95548108]
[1758661847775,0.1264,4168.5,4167.9,0.43168]
[1758661847776,0.8649,4168.0,4167.9,0.43168]
[1758661851075,0.8649,4168.0,4167.9,0.64288]
[1758661851273,1.1079,4168.0,4167.9,0.96548]
[1758661851470,1.1079,4168.0,4167.9,0.43168]
[1758661851772,1.1079,4168.0,4167.9,0.64288]
[1758661851971,1.1079,4168.0,4167.9,0.96548]
[1758661856083,0.8649,4168.0,4167.9,0.96548]
[1758661856378,1.1079,4168.0,4167.9,0.96548]
[1758661859474,0.8649,4168.0,4167.9,0.96548]
[1758661859676,1.1079,4168.0,4167.9,0.96548]
[1758661861687,0.9815,4168.0,4167.9,1.18728]
[1758661862386,1.1037,4168.0,4167.9,1.18728]
[1758661868792,0.7385,4168.0,4167.9,1.18728]
[1758661868994,0.9815,4168.0,4167.9,1.18728]
[1758661873512,1.1122,4168.0,4167.9,0.43168]
[1758661877208,1.63595508,4168.0,4167.9,0.43168]
[1758661878008,1.39295508,4168.0,4167.9,0.43168]
[1758661878211,1.63595508,4168.0,4167.9,0.43168]
[1758661879011,1.63595508,4168.0,4167.9,0.95228]
[1758661880310,1.63595508,4168.0,4167.9,0.64668]
[1758661884216,1.63595508,4168.0,4167.9,0.95778]
[1758661893418,1.63595508,4168.0,4167.9,0.64668]
[1758661893619,1.63595508,4168.0,4167.9,0.95778]
[1758661895521,1.63595508,4168.0,4167.9,0.64668]
[1758661895715,1.63595508,4168.0,4167.9,1.17298]
[1758661904428,1.22345508,4168.0,4167.5,0.2228]
[1758661904625,0.7464,4167.6,4167.5,0.65451]
[1758661904824,1.51315508,4167.6,4167.5,0.43171]
[1758661907825,1.51315508,4167.6,4167.5,0.96561]
[1758661908630,1.51315508,4167.6,4167.5,1.18081]
[1758661909338,0.9894,4167.6,4167.5,1.18081]
[1758661911229,3.2078,4167.7,4167.6,1.18081]
[1758661911431,3.4508,4167.7,4167.6,1.18081]
[1758661911734,3.9734,4167.7,4167.6,1.18081]
[1758661914033,4.18,4167.7,4167.6,1.18081]
[1758661916836,3.937,4167.7,4167.6,1.18081]
[1758661917037,4.18,4167.7,4167.6,1.18081]
[1758661918536,4.18,4167.7,4167.6,0.43171]
[1758661920436,0.4264,4167.4,4166.7,3.2078]
[1758661920737,0.7348,4167.2,4167.1,0.43177]
[1758661921841,0.7348,4167.2,4167.1,0.63947]
[1758661922237,0.7348,4167.2,4167.1,0.96287]
[1758661926944,0.7348,4167.2,4167.1,1.16647]
[1758661927443,3.9426,4167.2,4167.1,0.63947]
[1758661927641,3.9426,4167.2,4167.1,0.43177]
[1758661927843,4.37436,4167.2,4167.1,0.43177]
[1758661928854,0.7348,4167.1,4167.0,0.43177]
[1758661929053,0.9778,4167.1,4167.0,0.43177]
[1758661930558,0.7348,4167.1,4167.0,0.43177]
[1758661930765,0.9778,4167.1,4167.0,0.43177]
[1758661933057,4.1856,4167.1,4167.0,0.43177]
[1758661933254,0.4286,4166.7,4166.6,0.5224]
[1758661933558,0.7447,4166.7,4166.6,0.63682]
[1758661933760,0.9877,4166.7,4166.6,0.63682]
[1758661934456,1.41951,4166.7,4166.6,0.205]
[1758661935158,0.7447,4166.4,4166.3,0.5224]
[1758661935358,0.7447,4166.4,4166.3,0.95424]
[1758661935558,1.17654,4166.4,4166.3,0.5224]
[1758661935863,1.41954,4166.4,4166.3,0.205]
[1758661938861,0.9877,4166.4,4166.3,0.205]
[1758661939061,0.9877,4166.4,4166.3,1.17255]
[1758661939062,0.5303,4166.4,4166.3,1.17255]
[1758661939267,3.2078,4166.6,4166.5,1.30323]
[1758661941762,0.55433,4167.5,4166.5,1.30323]
[1758661941763,3.2078,4167.1,4166.8,0.7407]
[1758661941957,3.9525,4167.6,4167.5,0.7407]
[1758661942156,4.62721,4167.6,4167.5,0.205]
[1758661942364,0.7447,4167.3,4167.2,0.5224]
[1758661942967,0.7447,4167.3,4167.2,0.7407]
[1758661943564,1.17644,4167.3,4167.2,0.7407]
[1758661943767,0.4286,4167.3,4167.0,0.43177]
[1758661943966,0.7405,4166.9,4166.8,0.65429]
[1758661944270,0.7405,4166.9,4166.8,0.5377]
[1758661944459,0.7405,4166.9,4166.8,0.9695]
[1758661945867,0.5296,4166.9,4166.8,1.1878]
[1758661946962,3.2078,4167.1,4166.8,1.1878]
[1758661947165,3.5204,4167.1,4167.0,1.31528]
[1758661947366,3.7374,4167.1,4167.0,1.31528]
[1758661949064,3.7374,4167.1,4167.0,1.18778]
[1758661949668,3.9483,4167.1,4167.0,1.18778]
[1758661951865,3.9483,4167.1,4167.0,0.65428]
[1758661952170,3.9483,4167.1,4167.0,0.96948]
[1758661952468,4.1903,4167.1,4167.0,1.18778]
[1758661953170,4.1903,4167.1,4167.0,0.43178]
[1758661954472,4.1903,4167.1,4166.9,0.65428]
[1758661954473,0.5578,4167.0,4166.9,0.65428]
[1758661954777,0.7405,4166.4,4166.3,0.87265]
[1758661955166,0.7405,4166.4,4166.3,1.18785]
[1758661958177,0.1299,4167.0,4166.8,0.6543]
[1758661958178,0.9825,4166.9,4166.8,0.6543]
[1758661958376,0.9825,4166.9,4166.8,0.9695]
[1758661960876,0.9825,4166.9,4166.8,1.1878]
[1758661966681,0.9825,4166.9,4166.8,0.2225]
[1758661966882,0.9825,4166.9,4166.8,0.4318]
[1758661967579,0.217,4166.4,4166.3,0.5377]
[1758661967776,0.7405,4166.2,4166.1,0.65437]
[1758661968278,0.7405,4166.2,4166.1,0.96957]
[1758661969486,0.7405,4166.2,4166.1,0.65437]
[1758661970083,0.7405,4166.2,4166.1,0.96957]
[1758661970280,0.7405,4166.2,4166.1,0.65437]
[1758661970470,0.7405,4166.2,4166.1,0.96957]
[1758661970673,0.7405,4166.2,4166.1,1.18787]
[1758661975281,0.7405,4166.2,4166.1,0.65437]
[1758661976780,0.7405,4166.2,4166.1,0.97777]
[1758661977789,0.7405,4166.2,4166.1,0.65437]
[1758661978988,0.7405,4166.2,4166.1,0.97777]
[1758661979189,0.7405,4166.2,4166.1,0.65437]
[1758661979792,0.7405,4166.2,4166.1,0.97777]
[1758661980194,0.7405,4166.2,4166.1,1.19257]
[1758661981786,3.2078,4166.6,4166.5,0.43183]
[1758661982094,3.7559,4166.6,4166.5,1.32593]
[1758661983693,3.2078,4166.6,4166.5,1.32593]
[1758661983890,0.7901,4166.9,4166.8,0.8706]
[1758661984198,0.7901,4166.9,4166.8,1.194]
[1758661986695,0.5481,4166.9,4166.8,1.194]
[1758661987283,0.3248,4166.9,4166.8,1.194]
[1758661987488,3.9719,4167.7,4167.6,0.65571]
[1758661987688,4.73983255,4167.7,4167.6,1.19391]
[1758661987886,4.2139,4167.7,4167.4,0.3234]
[1758661988095,4.2139,4167.7,4167.4,0.97913]
[1758661988096,0.8981,4167.5,4167.4,0.97913]
[1758661988596,0.8981,4167.5,4167.1,0.3234]
[1758661988791,0.5733,4167.5,4167.4,0.43173]
[1758661989293,0.8981,4167.5,4167.4,0.43173]
[1758661989694,0.8981,4167.5,4167.4,0.97913]
[1758661989896,1.1401,4167.5,4167.4,0.97913]
[1758661991801,1.1401,4167.5,4167.4,1.19393]
[1758661993199,1.0061,4167.5,4167.4,1.19393]
[1758661993499,3.2078,4167.7,4167.6,0.43171]
[1758661993692,3.2078,4167.7,4167.6,1.17501]
[1758661995204,0.5418,4168.1,4168.0,0.43167]
[1758661995496,0.5418,4168.1,4168.0,1.17497]
[1758661996302,0.5418,4168.1,4168.0,1.30787]
[1758661998099,3.6391,4168.8,4168.7,1.1749]
[1758661998308,3.6391,4168.8,4168.7,0.4316]
[1758661998610,3.9735,4168.8,4168.7,0.4316]
[1758661999308,3.9735,4168.8,4168.7,0.6494]
[1758661999806,3.9735,4168.8,4168.7,0.9612]
[1758662000395,3.9735,4168.8,4168.7,1.1749]
[1758662000800,4.2155,4168.8,4168.7,1.1749]
[1758662001905,3.9735,4168.8,4168.7,1.1749]
[1758662004916,3.4315,4169.3,4169.2,1.16365]
[1758662005408,0.7432,4169.5,4169.4,0.4229]
[1758662005610,0.7432,4169.5,4169.4,1.16363]
[1758662007916,0.8664,4169.5,4169.4,1.16363]
[1758662008815,0.8664,4169.5,4169.4,0.43153]
[1758662013608,0.8664,4169.5,4169.4,0.64323]
[1758662013912,0.8664,4169.5,4169.4,0.95243]
[1758662014923,0.5261,4168.8,4168.7,4.6135]
[1758662015222,0.7432,4168.8,4168.7,4.6135]
[1758662018319,0.7432,4168.8,4168.7,4.3715]
[1758662018621,0.7432,4168.8,4168.7,4.6135]
[1758662021218,0.7432,4168.8,4168.7,4.3715]
[1758662021419,0.7432,4168.8,4168.7,4.6135]
[1758662022624,0.5261,4168.8,4168.7,4.3715]
[1758662022828,3.951,4169.4,4169.3,0.43154]
[1758662023319,0.7432,4169.3,4169.2,0.43155]
[1758662023826,0.7432,4169.3,4169.2,0.95245]
[1758662025326,0.3024,4169.3,4169.2,1.16365]
[1758662025728,0.5261,4169.3,4169.2,1.16365]
[1758662026320,0.7432,4169.3,4169.2,1.16365]
[1758662027125,0.7432,4169.2,4169.1,0.43156]
[1758662027526,0.7432,4169.2,4169.1,0.64326]
[1758662027731,0.5261,4169.2,4169.1,1.16366]
[1758662027937,3.2078,4169.4,4169.3,0.43154]
[1758662028226,3.2078,4169.4,4169.3,0.64324]
[1758662028427,3.7339,4169.4,4169.3,1.16364]
[1758662029035,3.2078,4169.4,4169.3,1.16364]
[1758662030230,3.7339,4169.4,4169.3,1.16364]
[1758662030729,3.951,4169.4,4169.3,1.16364]
[1758662034739,3.951,4169.4,4169.3,0.85444]
[1758662035843,3.951,4169.4,4169.3,0.43154]
[1758662036541,3.951,4169.4,4169.3,0.63694]
[1758662037352,3.951,4169.4,4169.3,1.16854]
[1758662040350,3.2078,4169.4,4169.3,1.16854]
[1758662042254,3.5379,4169.4,4169.3,1.16854]
[1758662042455,3.9733,4169.4,4169.3,1.16854]
[1758662042756,3.9733,4169.4,4169.3,1.41054]
[1758662043450,0.7655,4169.4,4169.3,1.41054]
[1758662043853,1.0075,4169.9,4169.8,0.63689]
[1758662044949,0.7655,4169.9,4169.8,0.63689]
[1758662045150,0.7655,4169.9,4169.8,0.43149]
[1758662045349,0.7655,4169.9,4169.8,0.63689]
[1758662045548,0.7655,4169.9,4169.8,0.96199]
[1758662046449,0.7655,4169.9,4169.8,1.16849]
[1758662048157,0.7655,4169.9,4169.8,0.43149]
[1758662048559,0.7655,4169.9,4169.8,0.63689]
[1758662050459,0.7655,4169.9,4169.8,0.96199]
[1758662052557,0.7655,4169.9,4169.8,0.63689]
[1758662053259,0.7655,4169.9,4169.8,0.96269]
[1758662054463,0.3301,4169.9,4169.8,1.16629]
[1758662054660,0.7566,4169.9,4169.8,0.75729]
[1758662054960,0.7566,4169.9,4169.8,1.17959]
[1758662055350,0.5415,4169.9,4169.8,1.17959]
[1758662055555,3.7596,4170.5,4170.4,0.65013]
[1758662055761,4.0016,4170.5,4170.4,0.65013]
[1758662055961,4.3095,4170.5,4170.4,0.65013]
[1758662056156,4.3095,4170.5,4170.4,0.43143]
[1758662056360,0.4265,4170.3,4170.2,0.97595]
[1758662056560,0.7344,4170.3,4170.2,0.97595]
[1758662058363,3.2078,4170.5,4170.4,0.43143]
[1758662058550,3.7271,4170.5,4170.4,1.17953]
[1758662059861,0.5193,4170.5,4170.4,1.17953]
[1758662064466,0.7344,4170.5,4170.4,1.17953]
[1758662064859,0.8605,4170.5,4170.4,0.43143]
[1758662067160,0.7262,4170.2,4170.1,0.43146]
[1758662067966,0.7262,4170.2,4170.1,0.64036]
[1758662069366,0.7262,4170.2,4170.1,0.43146]
[1758662069563,0.7262,4170.2,4170.1,0.97036]
[1758662069763,0.7262,4170.2,4170.1,1.17456]
[1758662072867,0.7262,4170.2,4169.8,3.5378]
[1758662073065,0.7262,4169.9,4169.8,4.17819]
[1758662074569,0.7262,4169.9,4169.8,4.38239]
[1758662077272,0.7262,4169.9,4169.8,4.62439]
[1758662082772,4.0601,4170.5,4170.4,0.64033]
[1758662083068,3.934,4171.0,4170.9,1.17448]
[1758662083474,3.723,4171.0,4170.9,1.17448]
[1758662084366,3.2078,4171.0,4170.9,1.17448]
[1758662084773,0.2054,4171.2,4171.1,0.4131]
[1758662084982,0.2054,4171.2,4171.1,0.7431]
[1758662085180,0.2054,4171.2,4171.1,1.17446]
[1758662085479,0.5152,4171.2,4171.1,1.17446]
[1758662085671,0.3098,4171.2,4171.1,1.17446]
[1758662085872,0.5152,4171.4,4171.3,1.17443]
[1758662086072,0.7262,4171.4,4171.3,1.17443]
[1758662088374,1.15753,4171.4,4171.2,0.43135]
[1758662088579,0.2054,4170.9,4170.8,0.4131]
[1758662088772,0.5152,4170.9,4170.8,0.7431]
[1758662088974,0.5152,4170.9,4170.8,1.17449]
[1758662090378,0.3098,4171.4,4171.3,0.43133]
[1758662090577,0.7262,4171.4,4171.3,0.5389]
[1758662091082,0.7262,4171.4,4171.3,0.64024]
[1758662091581,1.15753,4171.4,4171.3,0.64024]
[1758662093088,0.7262,4171.4,4171.3,0.64024]
[1758662094178,1.15753,4171.4,4171.3,0.64024]
[1758662094882,0.7262,4171.4,4171.3,0.64024]
[1758662095778,0.7262,4171.4,4171.3,0.96034]
[1758662097789,1.15753,4171.4,4171.3,0.96034]
[1758662098188,0.9682,4171.4,4171.3,0.96034]
[1758662098688,0.9682,4171.4,4171.3,1.17334]
[1758662100178,3.2078,4171.5,4171.4,0.43133]
[1758662100384,3.2078,4171.5,4171.4,1.18323]
[1758662101184,3.2078,4171.5,4171.4,6.18323]
[1758662101384,3.21508763,4172.1,4172.0,1.31326]
[1758662101686,3.21508763,4172.1,4172.0,0.882]
[1758662101891,3.53158763,4172.1,4172.0,0.882]
[1758662102088,3.73398763,4172.1,4172.0,1.31326]
[1758662102779,3.21508763,4172.1,4172.0,1.31326]
[1758662104090,3.73398763,4172.1,4172.0,0.7519]
[1758662104392,3.95348763,4172.1,4172.0,1.18316]
[1758662106684,3.95348763,4172.1,4171.3,1.07834]
[1758662106685,0.3165,4171.9,4171.7,0.99239]
[1758662106888,0.7384,4171.8,4171.7,0.241]
[1758662107090,0.7478,4171.7,4171.4,0.43132]
[1758662107295,4.0761,4171.5,4171.4,0.43132]
[1758662107495,3.7596,4171.5,4171.3,0.43134]
[1758662107692,0.4219,4171.2,4170.9,0.3201]
[1758662107895,3.3377,4171.5,4170.3,3.2078]
[1758662107896,3.7596,4171.0,4170.3,3.5279]
[1758662108098,0.7384,4170.4,4170.3,1.18334]
[1758662108292,3.3377,4171.0,4169.8,5.99900108]
[1758662108293,0.1299,4170.0,4169.9,0.3201]
[1758662108600,0.8683,4170.0,4169.8,0.43149]
[1758662108897,0.4219,4169.9,4169.2,0.3201]
[1758662109091,3.3377,4170.0,4169.4,0.7519]
[1758662109092,0.3165,4169.5,4169.4,0.7519]
[1758662109396,0.5189,4169.5,4169.4,0.7519]
[1758662110497,3.3377,4170.0,4169.9,1.18338]
[1758662110498,3.2078,4170.0,4169.9,1.18338]
[1758662110907,3.4102,4170.0,4169.9,1.18338]
[1758662111097,3.9462,4170.0,4169.9,1.18338]
[1758662111601,0.7384,4170.0,4169.9,1.18338]
[1758662113092,0.8612,4170.0,4169.9,0.86328]
[1758662113504,0.7384,4170.0,4169.9,1.17168]
[1758662115902,0.7425,4169.9,4169.8,0.43149]
[1758662116097,0.2212,4169.2,4169.1,3.419]
[1758662116306,0.5269,4169.2,4169.1,4.61066]
[1758662116503,0.2212,4169.2,4169.1,4.61066]
[1758662116703,0.8653,4169.5,4169.4,0.85343]
[1758662117202,0.8653,4169.5,4169.4,0.64273]
[1758662120706,0.8653,4169.5,4169.4,1.16183]
[1758662123505,0.8653,4169.5,4169.4,0.85343]
[1758662123999,0.4402,4169.3,4169.2,0.43155]
[1758662124304,0.7636,4169.3,4169.2,0.43155]
[1758662126004,0.222,4168.9,4168.6,4.28684]
[1758662126200,0.7636,4168.7,4168.6,3.9348]
[1758662126400,0.7636,4168.7,4168.6,4.1758]
[1758662126803,0.7636,4168.7,4168.6,4.60742]
[1758662127501,0.7636,4168.7,4168.6,4.36642]
[1758662127806,0.222,4168.1,4168.0,0.43168]
[1758662128115,0.7636,4168.1,4168.0,0.95288]
[1758662128407,0.7636,4168.1,4168.0,1.15868]
[1758662131001,0.222,4168.4,4168.3,0.84465]
[1758662131302,0.4402,4168.4,4168.3,1.15865]
[1758662131803,0.7636,4168.4,4168.3,1.15865]
[1758662135210,1.127,4169.0,4168.9,1.15858]
[1758662136008,3.2078,4169.2,4169.1,0.43156]
[1758662136204,3.2078,4169.2,4169.1,0.84456]
[1758662136406,3.2078,4169.2,4169.1,1.15856]
[1758662136599,0.222,4169.2,4169.1,1.15856]
[1758662136806,0.5454,4169.5,4169.4,1.15853]
[1758662140512,0.885,4169.5,4169.4,1.15853]
[1758662141007,0.885,4169.5,4169.0,0.314]
[1758662141206,0.222,4169.0,4168.9,0.727]
[1758662141410,0.5454,4169.0,4168.9,0.727]
[1758662141610,0.5454,4169.0,4168.9,1.40058]
[1758662141805,0.7636,4169.0,4168.9,1.40058]
[1758662146005,0.7636,4169.0,4168.9,0.413]
[1758662146212,0.885,4169.0,4168.9,1.15858]
[1758662146407,0.5454,4169.3,4169.2,1.15855]
[1758662146607,0.7636,4169.3,4169.2,1.15855]
[1758662153917,0.5454,4169.3,4169.2,1.15855]
[1758662154110,3.9646,4169.7,4169.6,0.83851]
[1758662154314,3.9646,4169.7,4169.6,1.17301]
[1758662154912,0.4339,4169.2,4169.1,1.17306]
[1758662155129,0.7568,4169.2,4169.1,1.17306]
[1758662155908,0.7568,4169.2,4168.5,2.91335108]
[1758662155909,0.4316,4168.8,4168.6,0.43161]
[1758662156113,0.4339,4168.7,4168.6,0.63511]
[1758662156325,0.7568,4168.7,4168.6,1.17311]
[1758662158223,0.7568,4168.7,4168.6,0.83861]
[1758662159123,0.7568,4168.7,4168.6,1.17311]
[1758662160526,0.5459,4168.7,4168.6,1.17311]
[1758662160727,3.9646,4169.2,4169.1,1.17306]
[1758662161419,3.9646,4169.2,4168.5,0.4653]
[1758662161420,0.43158,4168.9,4168.5,0.4653]
[1758662161620,0.7568,4168.6,4168.5,0.538]
[1758662161928,0.7568,4168.6,4168.5,0.43163]
[1758662162122,0.7568,4168.6,4168.5,0.63513]
[1758662162530,0.1282,4169.0,4168.3,0.43165]
[1758662162531,0.7568,4168.4,4168.3,0.43165]
[1758662163021,0.7568,4168.4,4168.3,0.96965]
[1758662163222,0.7568,4168.4,4168.3,1.17315]
[1758662163826,3.6417,4168.7,4168.6,0.83862]
[1758662164130,3.9646,4168.7,4168.6,1.17312]
[1758662164328,4.3962,4168.7,4168.6,0.2035]
[1758662164622,3.2078,4168.7,4168.6,1.17312]
[1758662164822,0.3229,4169.1,4168.8,1.07899]
[1758662165018,3.2078,4169.2,4169.1,0.43156]
[1758662165216,3.2078,4169.2,4169.1,1.17306]
[1758662166126,0.5459,4169.5,4169.4,0.83853]
[1758662166322,0.5459,4169.5,4169.4,1.17303]
[1758662167719,0.7568,4169.5,4169.4,1.17303]
[1758662173529,0.3104,4170.1,4170.0,0.43147]
[1758662173736,0.2049,4170.1,4170.0,1.31407]
[1758662173926,3.2078,4170.3,4170.2,0.43145]
[1758662174231,3.4127,4170.3,4170.2,1.18525]
[1758662174429,3.9402,4170.3,4170.2,1.18525]
[1758662174624,3.2078,4170.3,4170.2,1.18525]
[1758662174833,3.2078,4170.3,4170.2,1.42625]
[1758662175638,0.7324,4170.8,4170.7,0.8612]
[1758662175843,0.7324,4170.8,4170.7,1.1852]
[1758662176042,3.4127,4171.0,4170.9,0.86118]
[1758662176259,3.7231,4171.0,4170.9,1.18518]
[1758662177549,3.9402,4171.0,4170.9,1.18518]
[1758662178053,0.7324,4171.0,4170.9,1.18518]
[1758662178449,0.8558,4171.0,4170.9,1.18518]
[1758662185162,1.28717,4171.0,4170.9,0.2067]
[1758662185360,1.28717,4171.0,4170.7,0.43139]
[1758662185361,0.7553,4170.8,4170.7,0.43139]
[1758662185864,1.18669,4170.8,4170.7,0.43139]
[1758662186362,0.7553,4170.8,4170.7,0.43139]
[1758662187059,0.7553,4170.8,4170.7,0.65179]
[1758662187260,1.18669,4170.8,4170.7,0.43139]
[1758662187461,0.7553,4170.2,4170.1,1.18906]
[1758662189661,0.7553,4170.2,4170.1,0.43146]
[1758662189862,1.18675,4170.2,4169.9,0.43147]
[1758662190063,0.7553,4169.4,4169.3,0.96894]
[1758662190667,0.2149,4169.4,4169.3,1.18914]
[1758662192059,0.2149,4169.4,4169.2,3.4488]
[1758662192060,0.5328,4169.6,4169.5,0.87212]
[1758662192264,0.5328,4169.6,4169.5,1.18912]
[1758662193863,3.7728,4170.0,4169.9,0.65188]
[1758662194067,4.0907,4170.0,4169.9,1.18908]
[1758662202369,4.0907,4170.0,4169.9,0.87208]
[1758662203276,0.8829,4170.0,4169.9,1.18908]
[1758662204478,0.8829,4170.0,4169.9,0.65188]
[1758662204677,0.8829,4170.0,4169.9,1.18908]
[1758662212482,0.8829,4170.0,4169.9,0.43148]
[1758662214184,0.8829,4170.0,4169.9,0.65188]
[1758662214386,0.8829,4170.0,4169.9,0.95468]
[1758662216891,0.8829,4170.0,4169.9,0.43148]
[1758662217888,0.8829,4170.0,4169.9,0.63738]
[1758662218283,0.8829,4170.0,4169.9,0.43148]
[1758662220193,0.8829,4170.0,4169.9,0.94018]
[1758662221284,3.3354,4170.5,4169.9,0.7245]
[1758662221491,0.1234,4171.0,4170.9,1.15588]
[1758662221492,0.5275,4171.0,4170.9,1.15588]
[1758662221791,1.05047441,4171.0,4170.9,1.15588]
[1758662221988,1.36917441,4171.0,4170.9,1.15588]
[1758662222491,0.8462,4171.0,4170.9,1.15588]
[1758662222795,0.5205,4171.0,4170.9,1.15588]
[1758662223789,0.8504,4171.5,4171.4,0.85303]
[1758662223988,1.24533949,4171.5,4171.4,1.15583]
[1758662224293,0.7228,4171.5,4171.4,1.15583]
[1758662226190,0.8494,4171.5,4171.4,1.15583]
[1758662226990,0.7228,4170.8,4170.7,4.3889]
[1758662227194,0.7228,4170.8,4170.7,4.6047]
[1758662227392,0.5205,4170.8,4170.7,4.6047]
[1758662227993,0.2018,4170.8,4170.7,4.6047]
[1758662228292,0.2018,4170.8,4170.7,1.3969]
[1758662228293,0.7228,4170.8,4170.7,1.3969]
[1758662228994,0.7228,4170.8,4170.7,1.1559]
[1758662229395,0.7228,4170.8,4170.7,0.4314]
[1758662230896,0.3289,4170.5,4170.4,0.43143]
[1758662231091,4.0572,4170.5,4170.4,0.43143]
[1758662231292,4.0572,4170.5,4170.2,0.43144]
[1758662231293,0.43143,4170.4,4170.2,0.43144]
[1758662231590,0.4041,4169.9,4169.8,0.43149]
[1758662231796,0.7228,4169.9,4169.8,0.43149]
[1758662232195,3.9306,4169.9,4169.8,0.43149]
[1758662234294,0.4177,4169.8,4169.7,0.2046]
[1758662234495,0.5164,4169.2,4169.1,1.16006]
[1758662234800,0.5164,4169.2,4169.1,1.40106]
[1758662235493,0.2119,4169.2,4169.1,1.40106]
[1758662235895,0.5164,4169.4,4169.3,0.84774]
[1758662236095,0.5164,4169.4,4169.3,1.16004]
[1758662240692,3.2078,4169.9,4169.8,1.15999]
[1758662241704,0.5164,4170.4,4170.3,0.84764]
[1758662241898,0.5164,4170.4,4170.3,1.15994]
[1758662244310,0.5164,4170.4,4170.0,1.44947]
[1758662244311,3.2078,4170.5,4170.4,1.17203]
[1758662244609,3.2078,4170.5,4170.4,1.41303]
[1758662244804,3.7455,4171.0,4170.9,0.43138]
[1758662245110,3.7455,4171.0,4170.9,1.17198]
[1758662247509,3.2078,4171.0,4170.9,1.17198]
[1758662248513,3.5358,4171.0,4170.9,1.17198]
[1758662248716,0.5377,4171.0,4170.9,1.17198]
[1758662251705,0.8826,4171.0,4170.9,0.63858]
[1758662252215,0.8826,4171.0,4170.9,0.95268]
[1758662253614,0.8826,4171.0,4170.9,0.63858]
[1758662254520,0.8826,4171.0,4170.9,0.95268]
[1758662258720,0.8826,4171.0,4170.9,0.63858]
[1758662260636,0.8826,4171.0,4170.9,1.17198]
[1758662262230,0.7497,4171.0,4170.9,1.17198]
[1758662264832,0.8826,4171.0,4170.9,1.17198]
[1758662266022,0.7497,4171.0,4170.9,1.17198]
[1758662268835,0.5377,4171.0,4170.9,1.17198]
[1758662272732,0.7497,4171.0,4170.9,1.17198]
[1758662272938,0.8826,4171.0,4170.9,0.43138]
[1758662273238,0.8826,4171.0,4170.9,0.94718]
[1758662273437,0.8826,4171.0,4170.9,1.16398]
[1758662274138,3.4198,4171.4,4171.3,0.7435]
[1758662274634,3.5393,4172.0,4171.9,0.64807]
[1758662274833,4.14705027,4172.0,4171.9,1.17477]
[1758662275029,3.6245,4172.0,4171.9,1.17477]
[1758662275230,3.9528,4172.0,4171.9,1.17477]
[1758662276231,0.533,4171.9,4171.8,0.43128]
[1758662276437,0.3283,4171.8,4171.7,0.43129]
[1758662276628,0.745,4171.8,4171.7,0.43129]
[1758662277236,0.4167,4171.8,4171.5,0.43131]
[1758662277430,0.745,4171.2,4171.1,0.4591]
[1758662277626,0.745,4171.2,4171.1,0.7677]
[1758662277831,0.745,4171.2,4171.1,1.41586]
[1758662281130,0.5403,4171.2,4171.1,1.41586]
[1758662281841,0.745,4171.2,4171.1,0.43136]
[1758662282434,3.3307,4171.5,4170.5,5.05358108]
[1758662282435,0.745,4170.6,4170.5,3.85732]
[1758662282946,0.745,4170.6,4170.5,3.63922]
[1758662283130,0.745,4170.6,4170.5,3.2078]
[1758662283131,1.17641,4170.6,4170.5,3.2078]
[1758662283328,1.17641,4170.6,4170.5,3.63922]
[1758662283631,0.745,4170.6,4170.5,3.63922]
[1758662284237,0.745,4170.6,4170.5,0.43142]
[1758662285444,0.745,4170.1,4170.0,4.16597]
[1758662286434,0.745,4170.1,4170.0,4.38277]
[1758662286639,0.212,4170.5,4170.4,0.43143]
[1758662286942,3.3307,4171.0,4170.6,1.07852]
[1758662287137,3.2078,4171.6,4171.5,0.43131]
[1758662287435,3.2078,4171.6,4171.5,1.30811]
[1758662287941,3.42708763,4172.1,4172.0,1.17476]
[1758662288142,3.75538763,4172.1,4172.0,1.17476]
[1758662288941,3.42708763,4172.1,4172.0,1.17476]
[1758662289140,0.3283,4172.7,4172.6,0.4312]
[1758662289444,0.745,4172.7,4172.2,0.3086]
[1758662289646,0.3283,4172.6,4172.5,0.43121]
[1758662289837,0.745,4172.6,4172.5,0.64931]
[1758662290145,0.745,4172.4,4172.3,0.43123]
[1758662290443,0.4167,4172.1,4172.0,0.43126]
[1758662290744,0.745,4172.1,4172.0,0.43126]
[1758662290942,0.745,4171.7,4171.6,0.2181]
[1758662291141,0.745,4171.7,4171.6,0.6494]
[1758662291336,0.745,4171.7,4171.6,1.1748]
[1758662292137,0.212,4171.7,4171.6,1.1748]